[Event "Titled Tuesday Blitz August 1 Early 2023"]
[White "Shapiro, Viktor"]
[Black "Rosenberg, Evan S"]
[WhiteFideId "4175700"]
[BlackFideId "2019299"]
[WhiteElo "2520"]
[BlackElo "2400"]
[Result "1/2-1/2"]
[Round "7"]
[TimeControl "180+1"]
[Date "2023.08.01"]
[WhiteClock "0:00:12"]
[BlackClock "0:00:06"]
[Board "129"]

1. c4 {[%clk 0:03:00]}  c5 {[%clk 0:02:55]} 2. Nc3 {[%clk 0:03:00]}  Nc6 {[%clk 0:02:51]} 3. Nf3 {[%clk 0:02:59]}  e6 {[%clk 0:02:48]} 4. g3 {[%clk 0:02:59]}  Nf6 {[%clk 0:02:46]} 5. Bg2 {[%clk 0:02:59]}  Be7 {[%clk 0:02:47]} 6. O-O {[%clk 0:02:59]}  O-O {[%clk 0:02:46]} 7. d3 {[%clk 0:02:54]}  d5 {[%clk 0:02:45]} 8. Bd2 {[%clk 0:02:51]}  h6 {[%clk 0:02:42]} 9. Rc1 {[%clk 0:02:47]}  b6 {[%clk 0:02:32]} 10. a3 {[%clk 0:02:43]}  Bb7 {[%clk 0:02:24]} 11. cxd5 {[%clk 0:02:35]}  exd5 {[%clk 0:02:22]} 12. Na4 {[%clk 0:02:34]}  d4 {[%clk 0:02:11]} 13. Ne5 {[%clk 0:02:19]}  Nd5 {[%clk 0:01:59]} 14. Nxc6 {[%clk 0:02:07]}  Bxc6 {[%clk 0:01:59]} 15. b4 {[%clk 0:01:52]}  Qd7 {[%clk 0:01:53]} 16. Qb3 {[%clk 0:01:47]}  Nxb4 {[%clk 0:01:14]} 17. axb4 {[%clk 0:01:30]}  Bxa4 {[%clk 0:01:14]} 18. Qa2 {[%clk 0:01:10]}  Bc6 {[%clk 0:01:11]} 19. Bxc6 {[%clk 0:01:09]}  Qxc6 {[%clk 0:01:11]} 20. bxc5 {[%clk 0:01:09]}  Bxc5 {[%clk 0:01:06]} 21. Bb4 {[%clk 0:01:02]}  Rfe8 {[%clk 0:01:02]} 22. Bxc5 {[%clk 0:01:01]}  bxc5 {[%clk 0:01:02]} 23. Rc2 {[%clk 0:01:01]}  Re5 {[%clk 0:00:59]} 24. Rfc1 {[%clk 0:00:58]}  a6 {[%clk 0:00:57]} 25. Qa5 {[%clk 0:00:50]}  Rc8 {[%clk 0:00:50]} 26. Ra1 {[%clk 0:00:43]}  Re6 {[%clk 0:00:49]} 27. Ra4 {[%clk 0:00:39]}  Qd6 {[%clk 0:00:37]} 28. Rac4 {[%clk 0:00:37]}  Re5 {[%clk 0:00:37]} 29. Qa3 {[%clk 0:00:28]}  h5 {[%clk 0:00:34]} 30. h4 {[%clk 0:00:24]}  g5 {[%clk 0:00:34]} 31. hxg5 {[%clk 0:00:23]}  Rxg5 {[%clk 0:00:34]} 32. Kf1 {[%clk 0:00:19]}  h4 {[%clk 0:00:33]} 33. gxh4 {[%clk 0:00:18]}  Rf5 {[%clk 0:00:30]} 34. Ke1 {[%clk 0:00:18]}  Qf4 {[%clk 0:00:17]} 35. Rxc5 {[%clk 0:00:14]}  Qxf2+ {[%clk 0:00:17]} 36. Kd1 {[%clk 0:00:15]}  Qg1+ {[%clk 0:00:16]} 37. Kd2 {[%clk 0:00:15]}  Qe3+ {[%clk 0:00:17]} 38. Ke1 {[%clk 0:00:13]}  Rfxc5 {[%clk 0:00:13]} 39. Rxc5 {[%clk 0:00:13]}  Re8 {[%clk 0:00:12]} 40. Rg5+ {[%clk 0:00:12]}  Kh7 {[%clk 0:00:12]} 41. Qb2 {[%clk 0:00:12]}  Qxd3 {[%clk 0:00:08]} 42. Qd2 {[%clk 0:00:10]}  Qxd2+ {[%clk 0:00:07]} 43. Kxd2 {[%clk 0:00:09]}  f6 {[%clk 0:00:08]} 44. Rf5 {[%clk 0:00:09]}  Kg6 {[%clk 0:00:08]} 45. Rf4 {[%clk 0:00:09]}  Rd8 {[%clk 0:00:07]} 46. Kd3 {[%clk 0:00:10]}  a5 {[%clk 0:00:07]} 47. h5+ {[%clk 0:00:10]}  Kg5 {[%clk 0:00:07]} 48. Rf1 {[%clk 0:00:09]}  Kxh5 {[%clk 0:00:07]} 49. Rf5+ {[%clk 0:00:09]}  Kg4 {[%clk 0:00:07]} 50. Rxa5 {[%clk 0:00:10]}  f5 {[%clk 0:00:07]} 51. Ra7 {[%clk 0:00:10]}  Kf4 {[%clk 0:00:07]} 52. Re7 {[%clk 0:00:10]}  Rd5 {[%clk 0:00:07]} 53. Re6 {[%clk 0:00:10]}  Rd8 {[%clk 0:00:06]} 54. Re7 {[%clk 0:00:11]}  Rd6 {[%clk 0:00:07]} 55. Re8 {[%clk 0:00:11]}  Rd7 {[%clk 0:00:07]} 56. Re6 {[%clk 0:00:11]}  Rd5 {[%clk 0:00:07]} 57. Kc4 {[%clk 0:00:11]}  Rd8 {[%clk 0:00:06]} 58. Kd3 {[%clk 0:00:11]}  Rd7 {[%clk 0:00:06]} 59. Re8 {[%clk 0:00:11]}  Rd6 {[%clk 0:00:07]} 60. Re7 {[%clk 0:00:12]}  Rd5 {[%clk 0:00:07]} 61. Kc4 {[%clk 0:00:12]}  Rd8 {[%clk 0:00:06]} 62. Kd3 {[%clk 0:00:12]} 1/2-1/2


[Site "https://www.chess.com"]

[Event "Titled Tuesday Blitz August 1 Early 2023"]
[White "Berezin, Viktor"]
[Black "Llanos, Guillermo"]
[WhiteFideId "14107872"]
[BlackFideId "100358"]
[WhiteElo "2514"]
[BlackElo "2388"]
[Result "1-0"]
[Round "7"]
[TimeControl "180+1"]
[Date "2023.08.01"]
[WhiteClock "0:00:30"]
[BlackClock "0:00:07"]
[Board "130"]

1. d4 {[%clk 0:02:58]}  Nf6 {[%clk 0:02:56]} 2. Nf3 {[%clk 0:02:53]}  b6 {[%clk 0:02:56]} 3. g3 {[%clk 0:02:52]}  Bb7 {[%clk 0:02:56]} 4. Bg2 {[%clk 0:02:53]}  c5 {[%clk 0:02:56]} 5. O-O {[%clk 0:02:52]}  cxd4 {[%clk 0:02:54]} 6. Nxd4 {[%clk 0:02:53]}  Bxg2 {[%clk 0:02:53]} 7. Kxg2 {[%clk 0:02:54]}  Qc8 {[%clk 0:02:42]} 8. Nc3 {[%clk 0:02:52]}  Nc6 {[%clk 0:02:42]} 9. Nf3 {[%clk 0:02:50]}  g6 {[%clk 0:02:39]} 10. e4 {[%clk 0:02:50]}  d6 {[%clk 0:02:38]} 11. Bg5 {[%clk 0:02:43]}  Bg7 {[%clk 0:02:36]} 12. Qd2 {[%clk 0:02:43]}  O-O {[%clk 0:02:35]} 13. Bh6 {[%clk 0:02:43]}  Qg4 {[%clk 0:02:14]} 14. Bxg7 {[%clk 0:02:40]}  Kxg7 {[%clk 0:02:13]} 15. h3 {[%clk 0:02:36]}  Qh5 {[%clk 0:01:46]} 16. Rfe1 {[%clk 0:02:33]}  Rfd8 {[%clk 0:01:38]} 17. Nd5 {[%clk 0:02:30]}  Ne5 {[%clk 0:01:27]} 18. Nh2 {[%clk 0:02:20]}  Nxd5 {[%clk 0:01:10]} 19. exd5 {[%clk 0:02:20]}  Qf5 {[%clk 0:00:48]} 20. f4 {[%clk 0:02:14]}  Rac8 {[%clk 0:00:47]} 21. c3 {[%clk 0:01:59]}  Nc4 {[%clk 0:00:46]} 22. Qd4+ {[%clk 0:01:53]}  Kg8 {[%clk 0:00:42]} 23. Re2 {[%clk 0:01:43]}  h5 {[%clk 0:00:39]} 24. Nf3 {[%clk 0:01:39]}  Rc5 {[%clk 0:00:36]} 25. Rd1 {[%clk 0:01:38]}  Qd7 {[%clk 0:00:25]} 26. Qe4 {[%clk 0:01:29]}  Re8 {[%clk 0:00:23]} 27. Rd4 {[%clk 0:01:20]}  b5 {[%clk 0:00:22]} 28. Qd3 {[%clk 0:01:10]}  Nb6 {[%clk 0:00:21]} 29. Ng5 {[%clk 0:01:05]}  Qb7 {[%clk 0:00:19]} 30. Re6 {[%clk 0:00:55]}  Kg7 {[%clk 0:00:15]} 31. Nxf7 {[%clk 0:00:52]}  Rg8 {[%clk 0:00:09]} 32. Rxg6+ {[%clk 0:00:30]}  Kxf7 {[%clk 0:00:08]} 33. Qf5+ {[%clk 0:00:30]}  Ke8 {[%clk 0:00:07]} 34. Rxg8# {[%clk 0:00:30]} 1-0


[Site "https://www.chess.com"]

[Event "Titled Tuesday Blitz August 1 Early 2023"]
[White "Gyulamiryan-koryun"]
[Black "Klukin, Kirill"]
[BlackFideId "24199273"]
[WhiteElo "2094"]
[BlackElo "2683"]
[Result "0-1"]
[Round "7"]
[TimeControl "180+1"]
[Date "2023.08.01"]
[WhiteClock "0:00:02"]
[BlackClock "0:00:09"]
[Board "134"]

1. d4 {[%clk 0:02:48]}  Nf6 {[%clk 0:02:58]} 2. c4 {[%clk 0:02:47]}  Nc6 {[%clk 0:02:58]} 3. Nf3 {[%clk 0:02:46]}  e6 {[%clk 0:02:58]} 4. g3 {[%clk 0:02:44]}  Bb4+ {[%clk 0:02:58]} 5. Bd2 {[%clk 0:02:43]}  Qe7 {[%clk 0:02:58]} 6. Bg2 {[%clk 0:02:36]}  Bxd2+ {[%clk 0:02:57]} 7. Nbxd2 {[%clk 0:02:37]}  O-O {[%clk 0:02:57]} 8. O-O {[%clk 0:02:36]}  d6 {[%clk 0:02:58]} 9. e4 {[%clk 0:02:25]}  e5 {[%clk 0:02:58]} 10. d5 {[%clk 0:02:17]}  Nb8 {[%clk 0:02:58]} 11. Ne1 {[%clk 0:02:07]}  a5 {[%clk 0:02:57]} 12. Qc2 {[%clk 0:02:04]}  Na6 {[%clk 0:02:58]} 13. a3 {[%clk 0:02:03]}  Bd7 {[%clk 0:02:57]} 14. Nd3 {[%clk 0:01:58]}  c6 {[%clk 0:02:54]} 15. f4 {[%clk 0:01:55]}  cxd5 {[%clk 0:02:48]} 16. cxd5 {[%clk 0:01:52]}  Rfc8 {[%clk 0:02:46]} 17. Qd1 {[%clk 0:01:49]}  exf4 {[%clk 0:02:19]} 18. gxf4 {[%clk 0:01:42]}  Bb5 {[%clk 0:02:19]} 19. Qf3 {[%clk 0:01:22]}  Nc5 {[%clk 0:02:14]} 20. Nxc5 {[%clk 0:01:17]}  Bxf1 {[%clk 0:02:15]} 21. Rxf1 {[%clk 0:01:05]}  Rxc5 {[%clk 0:02:15]} 22. Nb3 {[%clk 0:01:02]}  Rc2 {[%clk 0:02:13]} 23. Nd4 {[%clk 0:00:56]}  Rxb2 {[%clk 0:02:12]} 24. Nf5 {[%clk 0:00:56]}  Qf8 {[%clk 0:01:45]} 25. e5 {[%clk 0:00:46]}  Ne8 {[%clk 0:01:22]} 26. Qc3 {[%clk 0:00:34]}  Rb6 {[%clk 0:00:52]} 27. Kh1 {[%clk 0:00:32]}  g6 {[%clk 0:00:26]} 28. Ng3 {[%clk 0:00:31]}  Rd8 {[%clk 0:00:24]} 29. Qxa5 {[%clk 0:00:25]}  dxe5 {[%clk 0:00:10]} 30. Qxb6 {[%clk 0:00:24]}  Rd6 {[%clk 0:00:11]} 31. Qc5 {[%clk 0:00:22]}  exf4 {[%clk 0:00:10]} 32. Rxf4 {[%clk 0:00:23]}  Qe7 {[%clk 0:00:11]} 33. Qf2 {[%clk 0:00:21]}  Nc7 {[%clk 0:00:09]} 34. Re4 {[%clk 0:00:21]}  Qd7 {[%clk 0:00:09]} 35. Qe2 {[%clk 0:00:21]}  Nxd5 {[%clk 0:00:09]} 36. Re8+ {[%clk 0:00:21]}  Kg7 {[%clk 0:00:09]} 37. Qe5+ {[%clk 0:00:20]}  f6 {[%clk 0:00:10]} 38. Qe6 {[%clk 0:00:19]}  Qxe6 {[%clk 0:00:10]} 39. Rxe6 {[%clk 0:00:19]}  Rxe6 {[%clk 0:00:10]} 40. Bxd5 {[%clk 0:00:20]}  Re3 {[%clk 0:00:10]} 41. a4 {[%clk 0:00:18]}  Ra3 {[%clk 0:00:10]} 42. Bxb7 {[%clk 0:00:17]}  Rxa4 {[%clk 0:00:11]} 43. Bf3 {[%clk 0:00:17]}  Rb4 {[%clk 0:00:11]} 44. Kg2 {[%clk 0:00:17]}  f5 {[%clk 0:00:12]} 45. Ne2 {[%clk 0:00:17]}  Kf6 {[%clk 0:00:12]} 46. Kf2 {[%clk 0:00:17]}  g5 {[%clk 0:00:12]} 47. Bg2 {[%clk 0:00:17]}  Ke5 {[%clk 0:00:13]} 48. Ng3 {[%clk 0:00:17]}  Rb2+ {[%clk 0:00:12]} 49. Kf1 {[%clk 0:00:17]}  g4 {[%clk 0:00:12]} 50. Nh5 {[%clk 0:00:13]}  f4 {[%clk 0:00:11]} 51. Bc6 {[%clk 0:00:12]}  Rb6 {[%clk 0:00:10]} 52. Bd7 {[%clk 0:00:11]}  Rh6 {[%clk 0:00:07]} 53. Bxg4 {[%clk 0:00:11]}  Rg6 {[%clk 0:00:06]} 54. Bf3 {[%clk 0:00:11]}  Rd6 {[%clk 0:00:06]} 55. Kg2 {[%clk 0:00:11]}  Kf5 {[%clk 0:00:06]} 56. h3 {[%clk 0:00:11]}  Kg5 {[%clk 0:00:06]} 57. Ng7 {[%clk 0:00:10]}  Rg6 {[%clk 0:00:05]} 58. Ne8 {[%clk 0:00:09]}  Kh4+ {[%clk 0:00:05]} 59. Kh2 {[%clk 0:00:08]}  Rb6 {[%clk 0:00:05]} 60. Nc7 {[%clk 0:00:07]}  Rb2+ {[%clk 0:00:06]} 61. Kg1 {[%clk 0:00:06]}  Kg3 {[%clk 0:00:06]} 62. Be2 {[%clk 0:00:06]}  Rb1+ {[%clk 0:00:07]} 63. Bf1 {[%clk 0:00:06]}  f3 {[%clk 0:00:08]} 64. Nd5 {[%clk 0:00:01]}  f2+ {[%clk 0:00:08]} 65. Kh1 {[%clk 0:00:02]}  Rxf1# {[%clk 0:00:09]} 0-1


[Site "https://www.chess.com"]

[Event "Titled Tuesday Blitz August 1 Early 2023"]
[White "Eynullayev, Atilla"]
[Black "Romero Arzuaga, Yudel"]
[WhiteFideId "13413570"]
[BlackFideId "3521010"]
[WhiteElo "2503"]
[BlackElo "2353"]
[Result "0-1"]
[Round "7"]
[TimeControl "180+1"]
[Date "2023.08.01"]
[WhiteClock "0:00:11"]
[BlackClock "0:00:32"]
[Board "140"]

1. d4 {[%clk 0:03:00]}  d5 {[%clk 0:02:59]} 2. c4 {[%clk 0:02:59]}  e6 {[%clk 0:02:59]} 3. Nc3 {[%clk 0:02:58]}  h6 {[%clk 0:03:00]} 4. cxd5 {[%clk 0:02:53]}  exd5 {[%clk 0:02:59]} 5. Bf4 {[%clk 0:02:52]}  c6 {[%clk 0:02:57]} 6. e3 {[%clk 0:02:52]}  Bf5 {[%clk 0:02:54]} 7. Qb3 {[%clk 0:02:46]}  Qb6 {[%clk 0:02:53]} 8. Nge2 {[%clk 0:02:45]}  Nd7 {[%clk 0:02:48]} 9. f3 {[%clk 0:02:45]}  Ngf6 {[%clk 0:02:44]} 10. g4 {[%clk 0:02:44]}  Bg6 {[%clk 0:02:36]} 11. h4 {[%clk 0:02:44]}  Be7 {[%clk 0:02:27]} 12. Ng3 {[%clk 0:02:26]}  Qxb3 {[%clk 0:02:18]} 13. axb3 {[%clk 0:02:26]}  Bc2 {[%clk 0:02:18]} 14. Rh2 {[%clk 0:02:18]}  Bxb3 {[%clk 0:02:17]} 15. Nf5 {[%clk 0:02:18]}  g6 {[%clk 0:01:57]} 16. Nd6+ {[%clk 0:02:16]}  Bxd6 {[%clk 0:01:56]} 17. Bxd6 {[%clk 0:02:16]}  a5 {[%clk 0:01:56]} 18. Rg2 {[%clk 0:01:12]}  a4 {[%clk 0:01:55]} 19. e4 {[%clk 0:01:12]}  Nb6 {[%clk 0:01:51]} 20. e5 {[%clk 0:01:09]}  Nfd7 {[%clk 0:01:50]} 21. f4 {[%clk 0:01:08]}  O-O-O {[%clk 0:01:40]} 22. f5 {[%clk 0:00:57]}  Rde8 {[%clk 0:01:19]} 23. Re2 {[%clk 0:00:36]}  g5 {[%clk 0:01:17]} 24. h5 {[%clk 0:00:35]}  Nc4 {[%clk 0:01:14]} 25. Nxa4 {[%clk 0:00:17]}  Nxd6 {[%clk 0:01:11]} 26. exd6 {[%clk 0:00:17]}  Bxa4 {[%clk 0:01:09]} 27. Rxa4 {[%clk 0:00:16]}  Nf6 {[%clk 0:01:06]} 28. Bh3 {[%clk 0:00:04]}  Kd7 {[%clk 0:01:03]} 29. Ra7 {[%clk 0:00:03]}  Rxe2+ {[%clk 0:01:02]} 30. Kxe2 {[%clk 0:00:04]}  Rb8 {[%clk 0:01:01]} 31. Kf3 {[%clk 0:00:03]}  Kxd6 {[%clk 0:01:01]} 32. b4 {[%clk 0:00:04]}  Nd7 {[%clk 0:01:00]} 33. Bf1 {[%clk 0:00:04]}  Nb6 {[%clk 0:00:59]} 34. Bd3 {[%clk 0:00:04]}  f6 {[%clk 0:00:58]} 35. Be2 {[%clk 0:00:04]}  Kc7 {[%clk 0:00:58]} 36. Bd3 {[%clk 0:00:04]}  Ra8 {[%clk 0:00:58]} 37. Rxa8 {[%clk 0:00:04]}  Nxa8 {[%clk 0:00:59]} 38. Ke3 {[%clk 0:00:05]}  Nb6 {[%clk 0:00:59]} 39. Kf3 {[%clk 0:00:05]}  Kd6 {[%clk 0:00:59]} 40. Ke3 {[%clk 0:00:06]}  Nd7 {[%clk 0:00:59]} 41. Kf3 {[%clk 0:00:06]}  Nb8 {[%clk 0:00:58]} 42. Ke3 {[%clk 0:00:06]}  Kc7 {[%clk 0:00:54]} 43. Kd2 {[%clk 0:00:06]}  Kb6 {[%clk 0:00:54]} 44. Kc3 {[%clk 0:00:06]}  Na6 {[%clk 0:00:54]} 45. Kb3 {[%clk 0:00:06]}  Nc7 {[%clk 0:00:54]} 46. Kc3 {[%clk 0:00:03]}  Ne8 {[%clk 0:00:54]} 47. Kd2 {[%clk 0:00:03]}  Nd6 {[%clk 0:00:54]} 48. Ke3 {[%clk 0:00:03]}  Ne8 {[%clk 0:00:47]} 49. Kd2 {[%clk 0:00:03]}  Nc7 {[%clk 0:00:47]} 50. Be2 {[%clk 0:00:03]}  Na6 {[%clk 0:00:45]} 51. Kc3 {[%clk 0:00:03]}  Nb8 {[%clk 0:00:44]} 52. Kd2 {[%clk 0:00:04]}  Kc7 {[%clk 0:00:44]} 53. Kc3 {[%clk 0:00:04]}  b6 {[%clk 0:00:43]} 54. Kd2 {[%clk 0:00:04]}  Kd6 {[%clk 0:00:44]} 55. Kc3 {[%clk 0:00:05]}  Nd7 {[%clk 0:00:44]} 56. Ba6 {[%clk 0:00:04]}  c5 {[%clk 0:00:43]} 57. Bb5 {[%clk 0:00:01]}  cxd4+ {[%clk 0:00:38]} 58. Kxd4 {[%clk 0:00:01]}  Ne5 {[%clk 0:00:38]} 59. Be2 {[%clk 0:00:02]}  Nc6+ {[%clk 0:00:38]} 60. Kc3 {[%clk 0:00:02]}  Ke5 {[%clk 0:00:38]} 61. b5 {[%clk 0:00:03]}  Nd4 {[%clk 0:00:37]} 62. Bd1 {[%clk 0:00:02]}  Ke4 {[%clk 0:00:37]} 63. Kb4 {[%clk 0:00:02]}  Nf3 {[%clk 0:00:35]} 64. Be2 {[%clk 0:00:02]}  d4 {[%clk 0:00:32]} 65. Kc4 {[%clk 0:00:02]}  Ne5+ {[%clk 0:00:31]} 66. Kb3 {[%clk 0:00:02]}  d3 {[%clk 0:00:31]} 67. Bd1 {[%clk 0:00:03]}  Ke3 {[%clk 0:00:32]} 68. Kc3 {[%clk 0:00:03]}  Nf3 {[%clk 0:00:30]} 69. Bxf3 {[%clk 0:00:02]}  Kxf3 {[%clk 0:00:29]} 70. Kxd3 {[%clk 0:00:03]}  Kxg4 {[%clk 0:00:29]} 71. Kd4 {[%clk 0:00:04]}  Kxf5 {[%clk 0:00:28]} 72. Kd5 {[%clk 0:00:05]}  g4 {[%clk 0:00:29]} 73. Kc6 {[%clk 0:00:06]}  g3 {[%clk 0:00:30]} 74. Kxb6 {[%clk 0:00:07]}  g2 {[%clk 0:00:31]} 75. Kc7 {[%clk 0:00:08]}  g1=Q {[%clk 0:00:31]} 76. b6 {[%clk 0:00:09]}  Qxb6+ {[%clk 0:00:31]} 77. Kxb6 {[%clk 0:00:09]}  Kg4 {[%clk 0:00:31]} 78. Kc5 {[%clk 0:00:10]}  f5 {[%clk 0:00:32]} 79. Kd5 {[%clk 0:00:11]}  f4 {[%clk 0:00:32]} 80. Ke5 {[%clk 0:00:12]}  f3 {[%clk 0:00:32]} 81. Kf6 {[%clk 0:00:13]}  Kxh5 {[%clk 0:00:33]} 82. Kg7 {[%clk 0:00:11]}  f2 {[%clk 0:00:32]} 0-1


[Site "https://www.chess.com"]

[Event "Titled Tuesday Blitz August 1 Early 2023"]
[White "Fontaine, Quentin"]
[Black "Vemparala, Nikash"]
[WhiteFideId "230804"]
[BlackFideId "30960967"]
[WhiteElo "2459"]
[BlackElo "2349"]
[Result "1-0"]
[Round "7"]
[TimeControl "180+1"]
[Date "2023.08.01"]
[WhiteClock "0:01:29"]
[BlackClock "0:00:23"]
[Board "141"]

1. Nf3 {[%clk 0:02:58]}  d5 {[%clk 0:02:59]} 2. g3 {[%clk 0:02:57]}  c5 {[%clk 0:03:00]} 3. Bg2 {[%clk 0:02:55]}  Nc6 {[%clk 0:03:00]} 4. d4 {[%clk 0:02:56]}  e6 {[%clk 0:02:59]} 5. O-O {[%clk 0:02:55]}  Nf6 {[%clk 0:02:59]} 6. c4 {[%clk 0:02:55]}  dxc4 {[%clk 0:02:57]} 7. Qa4 {[%clk 0:02:53]}  cxd4 {[%clk 0:02:48]} 8. Nxd4 {[%clk 0:02:48]}  Qxd4 {[%clk 0:02:45]} 9. Bxc6+ {[%clk 0:02:48]}  Bd7 {[%clk 0:02:42]} 10. Bxd7+ {[%clk 0:02:45]}  Qxd7 {[%clk 0:02:43]} 11. Qxc4 {[%clk 0:02:42]}  Be7 {[%clk 0:02:40]} 12. Nc3 {[%clk 0:02:41]}  Rc8 {[%clk 0:02:40]} 13. Qb3 {[%clk 0:02:40]}  O-O {[%clk 0:02:39]} 14. Rd1 {[%clk 0:02:39]}  Qc6 {[%clk 0:02:39]} 15. Bf4 {[%clk 0:02:37]}  Rfd8 {[%clk 0:02:37]} 16. Bg5 {[%clk 0:02:19]}  h6 {[%clk 0:02:34]} 17. Be3 {[%clk 0:02:18]}  a6 {[%clk 0:02:23]} 18. Rxd8+ {[%clk 0:02:15]}  Rxd8 {[%clk 0:02:21]} 19. Rd1 {[%clk 0:02:16]}  Rxd1+ {[%clk 0:02:18]} 20. Qxd1 {[%clk 0:02:15]}  Qd6 {[%clk 0:02:16]} 21. Qxd6 {[%clk 0:02:14]}  Bxd6 {[%clk 0:02:17]} 22. Bd4 {[%clk 0:02:14]}  e5 {[%clk 0:02:15]} 23. Bb6 {[%clk 0:02:13]}  Nd7 {[%clk 0:02:14]} 24. Be3 {[%clk 0:02:10]}  Bc5 {[%clk 0:02:11]} 25. Bd2 {[%clk 0:02:07]}  Nb6 {[%clk 0:02:08]} 26. b3 {[%clk 0:02:06]}  Kf8 {[%clk 0:02:03]} 27. Kf1 {[%clk 0:02:05]}  f5 {[%clk 0:02:01]} 28. e4 {[%clk 0:02:02]}  g6 {[%clk 0:02:00]} 29. Bxh6+ {[%clk 0:01:59]}  Kf7 {[%clk 0:01:58]} 30. exf5 {[%clk 0:02:00]}  gxf5 {[%clk 0:01:59]} 31. Be3 {[%clk 0:02:00]}  Bxe3 {[%clk 0:01:55]} 32. fxe3 {[%clk 0:02:01]}  Nd7 {[%clk 0:01:50]} 33. e4 {[%clk 0:02:01]}  Ke6 {[%clk 0:01:46]} 34. Ke2 {[%clk 0:02:00]}  Nf6 {[%clk 0:01:42]} 35. Kf3 {[%clk 0:01:56]}  b6 {[%clk 0:01:29]} 36. h3 {[%clk 0:01:56]}  b5 {[%clk 0:01:28]} 37. exf5+ {[%clk 0:01:55]}  Kxf5 {[%clk 0:01:28]} 38. g4+ {[%clk 0:01:55]}  Kg6 {[%clk 0:01:22]} 39. Ne4 {[%clk 0:01:54]}  Nd5 {[%clk 0:01:21]} 40. Nc5 {[%clk 0:01:51]}  a5 {[%clk 0:01:17]} 41. h4 {[%clk 0:01:48]}  Nc3 {[%clk 0:01:02]} 42. a4 {[%clk 0:01:46]}  bxa4 {[%clk 0:00:58]} 43. bxa4 {[%clk 0:01:46]}  Kh6 {[%clk 0:00:50]} 44. Ke3 {[%clk 0:01:44]}  Kg6 {[%clk 0:00:38]} 45. Kd3 {[%clk 0:01:42]}  Nd5 {[%clk 0:00:38]} 46. Nd7 {[%clk 0:01:36]}  e4+ {[%clk 0:00:35]} 47. Kd4 {[%clk 0:01:30]}  e3 {[%clk 0:00:30]} 48. Kxd5 {[%clk 0:01:29]}  e2 {[%clk 0:00:23]} 49. Ne5+ {[%clk 0:01:29]} 1-0


[Site "https://www.chess.com"]

[Event "Titled Tuesday Blitz August 1 Early 2023"]
[White "Vifleemskaia, Svetlana"]
[Black "Carrasco Miranda, Andres"]
[WhiteFideId "4129490"]
[BlackFideId "3405990"]
[WhiteElo "2334"]
[BlackElo "2457"]
[Result "1-0"]
[Round "7"]
[TimeControl "180+1"]
[Date "2023.08.01"]
[WhiteClock "0:01:36"]
[BlackClock "0:01:18"]
[Board "142"]

1. d4 {[%clk 0:03:00]}  Nf6 {[%clk 0:02:59]} 2. c4 {[%clk 0:03:00]}  g6 {[%clk 0:02:59]} 3. Nc3 {[%clk 0:02:59]}  d5 {[%clk 0:02:59]} 4. cxd5 {[%clk 0:02:59]}  Nxd5 {[%clk 0:03:00]} 5. Bd2 {[%clk 0:02:59]}  Bg7 {[%clk 0:02:59]} 6. e4 {[%clk 0:03:00]}  Nxc3 {[%clk 0:02:59]} 7. Bxc3 {[%clk 0:03:00]}  c5 {[%clk 0:02:58]} 8. d5 {[%clk 0:02:59]}  Bxc3+ {[%clk 0:02:58]} 9. bxc3 {[%clk 0:02:58]}  e6 {[%clk 0:02:59]} 10. Bc4 {[%clk 0:02:56]}  O-O {[%clk 0:02:57]} 11. Ne2 {[%clk 0:02:54]}  exd5 {[%clk 0:02:45]} 12. Bxd5 {[%clk 0:02:53]}  Qc7 {[%clk 0:02:44]} 13. O-O {[%clk 0:02:51]}  Nc6 {[%clk 0:02:44]} 14. f4 {[%clk 0:02:50]}  Be6 {[%clk 0:02:42]} 15. f5 {[%clk 0:02:44]}  Bxd5 {[%clk 0:02:41]} 16. exd5 {[%clk 0:02:43]}  Ne5 {[%clk 0:02:38]} 17. Qd2 {[%clk 0:02:41]}  Ng4 {[%clk 0:02:32]} 18. Rf4 {[%clk 0:02:32]}  h5 {[%clk 0:01:54]} 19. h3 {[%clk 0:02:22]}  Nf6 {[%clk 0:01:53]} 20. d6 {[%clk 0:02:06]}  Rad8 {[%clk 0:01:46]} 21. dxc7 {[%clk 0:01:58]}  Rxd2 {[%clk 0:01:45]} 22. fxg6 {[%clk 0:01:53]}  fxg6 {[%clk 0:01:34]} 23. Rxf6 {[%clk 0:01:52]}  Rc8 {[%clk 0:01:31]} 24. Nf4 {[%clk 0:01:47]}  Rxc7 {[%clk 0:01:30]} 25. Rxg6+ {[%clk 0:01:46]}  Kh7 {[%clk 0:01:30]} 26. Rg5 {[%clk 0:01:43]}  Rc2 {[%clk 0:01:20]} 27. Rxh5+ {[%clk 0:01:42]}  Kg7 {[%clk 0:01:20]} 28. Ne6+ {[%clk 0:01:41]}  Kg6 {[%clk 0:01:21]} 29. Rxc5 {[%clk 0:01:38]}  Rxc5 {[%clk 0:01:20]} 30. Nxc5 {[%clk 0:01:38]}  Rxc3 {[%clk 0:01:18]} 31. Nxb7 {[%clk 0:01:36]} 1-0


[Site "https://www.chess.com"]

[Event "Titled Tuesday Blitz August 1 Early 2023"]
[White "Pavlidou, Ekaterini"]
[Black "favesaul"]
[WhiteFideId "4213262"]
[WhiteElo "2327"]
[BlackElo "2456"]
[Result "1-0"]
[Round "7"]
[TimeControl "180+1"]
[Date "2023.08.01"]
[WhiteClock "0:00:18"]
[BlackClock "0:00:00"]
[Board "143"]

1. d4 {[%clk 0:03:00]}  Nf6 {[%clk 0:02:59]} 2. c4 {[%clk 0:03:00]}  e6 {[%clk 0:02:59]} 3. Nc3 {[%clk 0:03:00]}  Bb4 {[%clk 0:02:59]} 4. e3 {[%clk 0:03:00]}  O-O {[%clk 0:02:59]} 5. Bd2 {[%clk 0:03:01]}  d5 {[%clk 0:02:57]} 6. Nf3 {[%clk 0:03:01]}  b6 {[%clk 0:02:55]} 7. cxd5 {[%clk 0:03:01]}  exd5 {[%clk 0:02:55]} 8. Rc1 {[%clk 0:03:02]}  Re8 {[%clk 0:02:47]} 9. Bd3 {[%clk 0:03:01]}  Bb7 {[%clk 0:02:43]} 10. Ne5 {[%clk 0:03:01]}  a6 {[%clk 0:02:24]} 11. O-O {[%clk 0:02:57]}  Bd6 {[%clk 0:02:24]} 12. f4 {[%clk 0:02:57]}  c5 {[%clk 0:02:25]} 13. Be1 {[%clk 0:02:53]}  c4 {[%clk 0:02:11]} 14. Bb1 {[%clk 0:02:49]}  b5 {[%clk 0:02:11]} 15. Bh4 {[%clk 0:02:47]}  b4 {[%clk 0:02:08]} 16. Ne2 {[%clk 0:02:42]}  Be7 {[%clk 0:01:56]} 17. Bxf6 {[%clk 0:02:35]}  Bxf6 {[%clk 0:01:56]} 18. Ng3 {[%clk 0:02:35]}  g6 {[%clk 0:01:46]} 19. Nh5 {[%clk 0:02:26]}  Bh8 {[%clk 0:01:34]} 20. Qg4 {[%clk 0:02:20]}  Qd6 {[%clk 0:01:26]} 21. f5 {[%clk 0:02:10]}  Bc8 {[%clk 0:01:22]} 22. Nxf7 {[%clk 0:02:05]}  Kxf7 {[%clk 0:00:58]} 23. fxg6+ {[%clk 0:02:05]}  Ke7 {[%clk 0:00:58]} 24. Rf7+ {[%clk 0:02:00]}  Kd8 {[%clk 0:00:51]} 25. Qg5+ {[%clk 0:01:57]}  Re7 {[%clk 0:00:51]} 26. g7 {[%clk 0:01:46]}  Bxg7 {[%clk 0:00:49]} 27. Nxg7 {[%clk 0:01:42]}  Nc6 {[%clk 0:00:46]} 28. Rcf1 {[%clk 0:01:31]}  Ra7 {[%clk 0:00:13]} 29. e4 {[%clk 0:01:11]}  Nxd4 {[%clk 0:00:11]} 30. e5 {[%clk 0:01:01]}  Qc5 {[%clk 0:00:11]} 31. Kh1 {[%clk 0:00:57]}  Bd7 {[%clk 0:00:09]} 32. Rf8+ {[%clk 0:00:44]}  Kc7 {[%clk 0:00:09]} 33. e6 {[%clk 0:00:42]}  Nxe6 {[%clk 0:00:08]} 34. Qe5+ {[%clk 0:00:28]}  Qd6 {[%clk 0:00:08]} 35. Qxd6+ {[%clk 0:00:24]}  Kxd6 {[%clk 0:00:09]} 36. Nf5+ {[%clk 0:00:24]}  Kc7 {[%clk 0:00:05]} 37. Nxe7 {[%clk 0:00:24]}  d4 {[%clk 0:00:05]} 38. R8f2 {[%clk 0:00:19]}  Kd6 {[%clk 0:00:04]} 39. Nf5+ {[%clk 0:00:19]}  Kc5 {[%clk 0:00:04]} 40. Ng3 {[%clk 0:00:19]}  c3 {[%clk 0:00:02]} 41. Ne4+ {[%clk 0:00:19]}  Kd5 {[%clk 0:00:02]} 42. bxc3 {[%clk 0:00:19]}  bxc3 {[%clk 0:00:03]} 43. Bd3 {[%clk 0:00:20]}  Bb5 {[%clk 0:00:03]} 44. Nf6+ {[%clk 0:00:20]}  Kd6 {[%clk 0:00:00]} 45. Ne4+ {[%clk 0:00:18]} 1-0


[Site "https://www.chess.com"]